[Event "Turkey IS Bank Super League 2017"]
[Site "Darica-Kocaeli"]
[Date "2017.07.31"]
[Round "7"]
[White "Yelken, Mustafa"]
[Black "Sevgi, Volkan"]
[Result "1/2-1/2"]
[ECO "B01"]
[WhiteElo "2171"]
[BlackElo "2199"]
[Annotator "NA"]
[PlyCount "101"]
[EventType "team-tourn"]
[EventCountry "TUR"]
[SourceTitle "playchess.com"]
[Source "ChessBase"]
[SourceQuality "1"]
[TimeControl "40/5400+30:1800+30"]

1. e4 {[%emt 0:01:30]} d5 {[%emt 0:01:00]} 2. exd5 {[%emt 0:00:30]} Qxd5 {[%emt 0:00:30]} 3. Nc3 {[%emt 0:00:30]} Qd6 {[%emt 0:00:30]} 4. d4 {[%emt 0:00:30]} Nf6 {[%emt 0:00:30]} 5. Nf3 {[%emt 0:00:30]} c6 {[%emt 0:00:30]} 6. g3 {[%emt 0:00:30] B01: Scandinavian Defence} (6. Ne5 Nbd7 7. Nc4 Qc7 8. a4 Nd5 9. Bd3 g6 10. Qf3 N7f6 11. Nxd5 Nxd5 12. O-O Bg7 13. c3 O-O 14. Qg3 Qxg3 15. hxg3 {½-½ (28) Caruana,F (2808)-Carlsen,M (2857) Baku 2016}) 6... Bg4 {[%emt 0:00:30]} 7. Bg2 {[%emt 0:00:30]} e6 {[%emt 0:00:00]} 8. O-O {[%emt 0:01:30]} Be7 {[%emt 0:00:00]} 9. Bf4 {[%emt 0:02:30]} Qd8 {[%emt 0:00:00]} 10. h3 {[%emt 0:00:30]} Bh5 {[%emt 0:00:00]} 11. g4 {[%emt 0:02:30]} Bg6 {[%emt 0:00:00]} 12. Ne5 {[%emt 0:00:30]} Nfd7 {[%emt 0:00:00]} 13. Ne4 $146 {[%emt 0:11:30]} ({Predecessor:} 13. Nxg6 hxg6 {0-1 (75) Macieja,B (2600)-Tiviakov,S (2686) Wolvega 2008}) 13... Bxe4 {[%emt 0:06:30]} 14. Bxe4 {[%emt 0:00:30]} Nf6 {[%emt 0:00:00]} ({Black should try} 14... Nxe5 $11 15. Bxe5 O-O) 15. Bg2 {[%emt 0:04:30]} h5 {[%emt 0:02:00] [#]} ({Black should try} 15... Nbd7 $14) 16. c4 {[%emt 0:13:30]} (16. g5 $1 $16 Nfd7 17. h4) 16... hxg4 {[%emt 0:02:30]} 17. hxg4 {[%emt 0:00:30]} Nbd7 {[%emt 0:00:30]} 18. Bf3 {[%emt 0:14:30]} Nxe5 {[%emt 0:03:30]} 19. dxe5 {[%emt 0:03:30]} Nd7 {[%emt 0:00:30]} 20. Kg2 {[%emt 0:04:30]} Bg5 {[%emt 0:06:30]} 21. Qd2 {[%emt 0:01:30]} Bxf4 {[%emt 0:00:30]} 22. Qxf4 {[%emt 0:00:30]} g5 {[%emt 0:00:00]} 23. Qe3 {[%emt 0:01:30]} Nf8 {[%emt 0:03:00]} 24. Be4 {[%emt 0:02:30]} Rh4 {[%emt 0:00:30]} 25. f3 {[%emt 0:03:30]} Nd7 {[%emt 0:01:30]} 26. Rad1 {[%emt 0:01:30]} Qe7 {[%emt 0:00:00]} 27. Rh1 {[%emt 0:08:56]} Nxe5 {[%emt 0:02:00]} 28. Rxh4 $11 {[%emt 0:01:12]} gxh4 {[%emt 0:00:00]} 29. Qh6 {[%emt 0:00:28]} Nxc4 {[%emt 0:00:00]} 30. b3 {[%emt 0:03:40]} Nb6 {[%emt 0:01:30]} 31. Qh8+ {[%emt 0:00:35]} Qf8 {[%emt 0:00:00]} 32. Qxh4 {[%emt 0:00:53]} Nd5 {[%emt 0:12:00]} 33. Bxd5 {[%emt 0:00:34]} cxd5 {[%emt 0:00:00]} 34. Qf6 {[%emt 0:03:36]} Kd7 {[%emt 0:05:00]} 35. Rh1 {[%emt 0:03:05]} Qe7 {[%emt 0:00:30]} 36. Qd4 {[%emt 0:00:23]} Qd6 {[%emt 0:03:30]} 37. Qf6 {[%emt 0:04:12]} Rf8 {[%emt 0:01:30]} 38. Rh7 {[%emt 0:00:07]} Ke8 {[%emt 0:00:30]} 39. g5 {[%emt 0:02:47]} Qd8 {[%emt 0:07:30]} 40. Qe5 {[%emt 0:00:00]} Rg8 {[%emt 0:01:30]} 41. f4 {[%emt 0:05:02]} Qc8 {[%emt 0:05:30]} 42. Kg3 {[%emt 0:01:30]} Qd8 {[%emt 0:09:30]} 43. Kf3 {[%emt 0:02:30]} Kf8 {[%emt 0:02:30]} 44. Kg3 {[%emt 0:03:30]} b6 {[%emt 0:01:30]} 45. Kf3 {[%emt 0:01:30]} d4 {[%emt 0:04:30]} 46. Ke2 {[%emt 0:01:30]} Qc8 {[%emt 0:10:30]} 47. Qxd4 {[%emt 0:01:38]} Qc2+ {[%emt 0:06:30]} 48. Kf3 {[%emt 0:00:22]} Qxh7 {[%emt 0:20:55]} 49. Qd8+ {[%emt 0:00:30]} Kg7 {[%emt 0:00:30]} 50. Qf6+ {[%emt 0:00:30]} Kf8 {[%emt 0:00:00]} 51. Qd8+ {[%emt 0:00:00]} 1/2-1/2

[Event "Turkey IS Bank Super League 2017"]
[Site "Darica-Kocaeli"]
[Date "2017.07.31"]
[Round "7"]
[White "Garabetyan, Arno"]
[Black "Topak, Engin"]
[Result "1/2-1/2"]
[ECO "B06"]
[WhiteElo "2085"]
[BlackElo "2192"]
[Annotator "NA"]
[PlyCount "88"]
[EventType "team-tourn"]
[EventCountry "TUR"]
[SourceTitle "playchess.com"]
[Source "ChessBase"]
[SourceQuality "1"]
[TimeControl "40/5400+30:1800+30"]

1. Nf3 {[%emt 0:00:30]} g6 {[%emt 0:01:00]} 2. d4 {[%emt 0:00:30]} Bg7 {[%emt 0:00:30]} 3. e4 {[%emt 0:00:30]} d6 {[%emt 0:00:30]} 4. Bc4 {[%emt 0:02:30]} Nf6 {[%emt 0:09:30]} 5. Qe2 {[%emt 0:00:00]} c6 {[%emt 0:01:30]} 6. Bb3 {[%emt 0:01:00]} O-O {[%emt 0:03:30]} 7. O-O {[%emt 0:00:30]} d5 {[%emt 0:05:30]} 8. e5 {[%emt 0:04:30]} Ne8 {[%emt 0:06:30]} 9. c4 {[%emt 0:04:30]} Nc7 {[%emt 0:03:30]} 10. Nc3 {[%emt 0:04:30]} Bg4 {[%emt 0:25:30]} 11. Rd1 {[%emt 0:00:30]} e6 {[%emt 0:01:30]} 12. h3 {[%emt 0:01:30]} Bxf3 {[%emt 0:00:00]} 13. Qxf3 {[%emt 0:00:30]} Nd7 {[%emt 0:00:00]} 14. Qe2 {[%emt 0:05:30]} Qh4 {[%emt 0:07:30]} 15. cxd5 {[%emt 0:16:30]} exd5 {[%emt 0:01:30]} 16. Kh2 {[%emt 0:02:30]} Qe7 {[%emt 0:02:30]} 17. f4 {[%emt 0:00:30]} f6 $11 {[%emt 0:01:30]} 18. Kh1 {[%emt 0:16:30]} Kh8 {[%emt 0:00:30]} 19. Be3 {[%emt 0:01:30]} fxe5 {[%emt 0:02:30]} 20. fxe5 {[%emt 0:00:30]} Qh4 {[%emt 0:02:30]} 21. Qg4 {[%emt 0:08:30]} Qxg4 {[%emt 0:04:36]} 22. hxg4 {[%emt 0:00:30]} Rae8 {[%emt 0:00:04]} 23. Rd2 {[%emt 0:07:30]} Ne6 {[%emt 0:07:16]} 24. Kg1 {[%emt 0:05:40]} Nb6 {[%emt 0:00:14]} 25. Rf1 {[%emt 0:01:01]} Rxf1+ {[%emt 0:00:40]} 26. Kxf1 {[%emt 0:00:01]} Bf8 {[%emt 0:00:27]} 27. Rf2 {[%emt 0:04:04]} Kg7 {[%emt 0:02:45]} 28. Ne2 {[%emt 0:00:23]} Be7 {[%emt 0:00:45]} 29. Ng1 {[%emt 0:01:58]} Bh4 {[%emt 0:05:20]} 30. Rd2 {[%emt 0:01:12]} Bg5 {[%emt 0:00:56]} 31. Bxg5 {[%emt 0:04:07]} Nxg5 {[%emt 0:00:03]} 32. Nf3 {[%emt 0:01:22]} Ne6 {[%emt 0:04:16]} 33. Ke2 {[%emt 0:00:46]} Rf8 {[%emt 0:00:20]} 34. g5 {[%emt 0:00:47]} Rf4 {[%emt 0:00:28]} 35. Kd3 {[%emt 0:01:16]} Nc8 {[%emt 0:00:17]} 36. Kc3 {[%emt 0:01:15]} Ne7 {[%emt 0:00:12]} 37. Bc2 {[%emt 0:01:06]} Nf5 {[%emt 0:01:59]} 38. Bxf5 {[%emt 0:00:44]} Rxf5 {[%emt 0:00:02]} 39. b4 {[%emt 0:00:00]} a6 {[%emt 0:01:09]} 40. a4 {[%emt 0:00:00]} Nxg5 {[%emt 0:01:11]} 41. Nxg5 {[%emt 0:01:18]} Rxg5 {[%emt 0:00:30]} 42. b5 {[%emt 0:00:30]} axb5 {[%emt 0:00:30]} 43. axb5 {[%emt 0:00:00]} cxb5 {[%emt 0:00:00]} 44. Kb4 {[%emt 0:00:00]} Kf7 {[%emt 0:00:00]} 1/2-1/2

[Event "Turkey IS Bank Super League 2017"]
[Site "Darica-Kocaeli"]
[Date "2017.07.31"]
[Round "7"]
[White "Gundogan, Cem"]
[Black "Kamer, Kayra"]
[Result "1-0"]
[ECO "A48"]
[WhiteElo "2062"]
[BlackElo "2062"]
[Annotator "NA"]
[PlyCount "89"]
[EventType "team-tourn"]
[EventCountry "TUR"]
[SourceTitle "playchess.com"]
[Source "ChessBase"]
[SourceQuality "1"]
[TimeControl "40/5400+30:1800+30"]

1. d4 {[%emt 0:00:30]} Nf6 {[%emt 0:02:00]} 2. Nf3 {[%emt 0:00:30]} g6 {[%emt 0:00:30]} 3. b4 {[%emt 0:00:30]} Bg7 {[%emt 0:00:30]} 4. Bb2 {[%emt 0:00:30]} d5 {[%emt 0:00:30]} 5. e3 {[%emt 0:00:30]} a5 {[%emt 0:00:30]} 6. b5 {[%emt 0:00:30]} Bf5 {[%emt 0:00:30]} 7. c4 {[%emt 0:02:30]} c6 {[%emt 0:00:30]} 8. Nc3 {[%emt 0:08:30]} O-O {[%emt 0:00:30]} 9. cxd5 {[%emt 0:00:30]} cxb5 {[%emt 0:01:30]} 10. Bxb5 {[%emt 0:01:30]} Nxd5 {[%emt 0:00:30]} 11. O-O {[%emt 0:00:30]} Na6 {[%emt 0:00:30]} 12. Qe2 {[%emt 0:00:30]} Rc8 {[%emt 0:02:30]} 13. Rac1 {[%emt 0:01:30]} Nab4 {[%emt 0:01:30]} 14. Rfd1 {[%emt 0:27:30]} (14. a3 $14 Nxc3 15. Bxc3) 14... Nxc3 {[%emt 0:05:30]} 15. Bxc3 {[%emt 0:01:30]} Nd5 $16 {[%emt 0:00:30]} (15... Qd5 $11 {keeps the balance.} 16. Bxb4 axb4) 16. Be1 {[%emt 0:01:30]} b6 {[%emt 0:03:30]} 17. e4 {[%emt 0:07:30]} Nf4 {[%emt 0:00:30]} 18. Qe3 {[%emt 0:00:30]} Bh6 {[%emt 0:00:30]} 19. Kf1 {[%emt 0:09:30]} Bd7 {[%emt 0:03:30]} 20. Be2 {[%emt 0:06:30]} Rxc1 {[%emt 0:03:30]} 21. Qxc1 {[%emt 0:18:50]} Qa8 {[%emt 0:00:30]} 22. Qe3 {[%emt 0:01:25]} Rc8 {[%emt 0:04:30]} 23. Ne5 {[%emt 0:02:03]} Ba4 {[%emt 0:01:30]} 24. Ng4 {[%emt 0:01:33]} Bg5 {[%emt 0:00:00]} 25. h4 {[%emt 0:01:52]} Nxe2 {[%emt 0:01:00]} 26. Qxg5 {[%emt 0:00:10]} Qa6 {[%emt 0:02:30]} 27. Qxe7 {[%emt 0:01:49]} Qc4 {[%emt 0:23:30]} 28. d5 {[%emt 0:02:42]} Ng3+ {[%emt 0:24:14]} 29. Kg1 {[%emt 0:00:30]} Qc7 {[%emt 0:00:00]} 30. d6 {[%emt 0:00:33]} Qxe7 {[%emt 0:01:29]} 31. dxe7 {[%emt 0:00:02]} Bxd1 {[%emt 0:00:00]} 32. Nf6+ {[%emt 0:00:52]} Kh8 {[%emt 0:01:07]} 33. fxg3 {[%emt 0:00:30]} Ba4 {[%emt 0:00:00]} 34. Bf2 {[%emt 0:00:29]} Rc4 {[%emt 0:04:18]} 35. Bxb6 {[%emt 0:00:33]} Kg7 {[%emt 0:00:23]} 36. e8=Q {[%emt 0:00:49]} Bxe8 {[%emt 0:00:30]} 37. Nxe8+ {[%emt 0:00:30]} Kf8 {[%emt 0:00:00]} 38. Nf6 {[%emt 0:00:15]} Ra4 {[%emt 0:00:32]} 39. Bc5+ {[%emt 0:00:47]} Kg7 {[%emt 0:00:15]} 40. Ne8+ {[%emt 0:00:29]} Kg8 {[%emt 0:30:30]} 41. a3 {[%emt 0:00:00]} Rc4 {[%emt 0:00:00]} 42. Bd6 {[%emt 0:01:17]} f5 {[%emt 0:00:00]} 43. e5 {[%emt 0:01:30]} Kf7 {[%emt 0:00:00]} 44. Nc7 {[%emt 0:00:00]} f4 {[%emt 0:00:00]} 45. gxf4 {[%emt 0:00:00]} 1-0

[Event "Turkey IS Bank Super League 2017"]
[Site "Darica-Kocaeli"]
[Date "2017.07.31"]
[Round "7"]
[White "Gulden, Egemen"]
[Black "Dolgun, Can"]
[Result "0-1"]
[ECO "C49"]
[WhiteElo "2044"]
[BlackElo "2104"]
[Annotator "NA"]
[PlyCount "82"]
[EventType "team-tourn"]
[EventCountry "TUR"]
[SourceTitle "playchess.com"]
[Source "ChessBase"]
[SourceQuality "1"]
[TimeControl "40/5400+30:1800+30"]

1. e4 {[%emt 0:00:30]} e5 {[%emt 0:01:00]} 2. Nf3 {[%emt 0:00:30]} Nc6 {[%emt 0:00:30]} 3. Nc3 {[%emt 0:00:30]} Nf6 {[%emt 0:00:30]} 4. Bb5 {[%emt 0:00:30]} Bb4 {[%emt 0:00:30]} 5. O-O {[%emt 0:00:30]} O-O {[%emt 0:00:30]} 6. d3 {[%emt 0:00:30]} d6 {[%emt 0:00:30]} 7. h3 {[%emt 0:00:30]} Bxc3 {[%emt 0:00:30]} 8. bxc3 {[%emt 0:00:30]} Ne7 {[%emt 0:00:30]} 9. Re1 {[%emt 0:06:30]} a6 {[%emt 0:03:30] C49: Four Knights: 4 Bb5 Bb4} 10. Bc4 {[%emt 0:03:30]} b5 {[%emt 0:02:30]} 11. Bb3 {[%emt 0:00:30]} Bb7 {[%emt 0:00:30]} (11... c5 12. Bg5 Ng6 13. Bd5 Rb8 14. a4 h6 15. Bxf6 Qxf6 16. axb5 axb5 17. Nh2 {0-1 (33) Andreikin,D (2720)-Carlsen,M (2850) Berlin 2015}) 12. Nh4 $146 {[%emt 0:18:30]} ({Predecessor:} 12. Bg5 Ng6 13. Nh4 c5 14. Nxg6 hxg6 15. Qf3 Rc8 16. Bd5 Bxd5 17. exd5 {0-1 (43) Barroso,A (1580)-Mapletoft,A (1865) Sunningdale 2007}) 12... h6 {[%emt 0:03:30]} 13. Be3 {[%emt 0:04:30]} (13. Qf3 $5 {[%cal Rc1h6]}) 13... c5 {[%emt 0:07:30]} 14. c4 {[%emt 0:11:30]} b4 {[%emt 0:02:30]} 15. Qd2 {[%emt 0:06:30]} Nh7 {[%emt 0:11:30]} 16. g4 {[%emt 0:13:30]} Ng6 {[%emt 0:07:30]} 17. Nf5 {[%emt 0:08:30]} Ng5 {[%emt 0:00:30]} 18. Bxg5 {[%emt 0:04:49]} hxg5 {[%emt 0:01:30]} 19. Re3 {[%emt 0:00:13]} Nf4 {[%emt 0:00:30]} 20. Rg3 {[%emt 0:00:54]} g6 {[%emt 0:07:30]} 21. Ne3 {[%emt 0:00:08]} Kg7 {[%emt 0:00:30]} 22. f3 $19 {[%emt 0:09:41]} Rh8 {[%emt 0:00:30]} 23. Qh2 {[%emt 0:02:50]} Rh6 {[%emt 0:03:30]} 24. Nd1 {[%emt 0:03:53]} Qh8 {[%emt 0:00:30]} 25. Nf2 {[%emt 0:00:00]} Ne2+ {[%emt 0:04:30]} 26. Kf1 {[%emt 0:00:00]} Nxg3+ {[%emt 0:00:30]} 27. Qxg3 {[%emt 0:00:16]} Bc6 {[%emt 0:00:30]} 28. a4 {[%emt 0:00:27]} bxa3 {[%emt 0:01:30]} 29. Rxa3 {[%emt 0:00:10]} a5 {[%emt 0:00:30]} 30. c3 {[%emt 0:01:52]} Rb8 {[%emt 0:09:30]} 31. d4 {[%emt 0:00:03]} a4 {[%emt 0:01:30]} 32. Bxa4 {[%emt 0:01:13]} Rb1+ {[%emt 0:02:30]} 33. Ke2 {[%emt 0:01:40]} Qb8 {[%emt 0:01:30]} 34. Bb5 {[%emt 0:00:47]} Bxb5 {[%emt 0:00:30]} 35. cxb5 {[%emt 0:00:33]} Qxb5+ {[%emt 0:00:30]} 36. Nd3 {[%emt 0:00:00]} exd4 {[%emt 0:04:30]} 37. Ra2 {[%emt 0:00:57]} Qb3 {[%emt 0:01:30]} 38. Rd2 {[%emt 0:00:27]} dxc3 {[%emt 0:00:30]} 39. Qxd6 {[%emt 0:00:11]} cxd2 {[%emt 0:00:30]} 40. Qe5+ {[%emt 0:00:30]} Kh7 {[%emt 0:00:00]} 41. Kxd2 {[%emt 0:00:26]} Rd1+ {[%emt 0:00:00]} 0-1

[Event "Turkey IS Bank Super League 2017"]
[Site "Darica-Kocaeli"]
[Date "2017.07.31"]
[Round "7"]
[White "Gundogan, Sinem Cagla"]
[Black "Celik, Eda"]
[Result "1/2-1/2"]
[ECO "B25"]
[WhiteElo "2000"]
[BlackElo "1939"]
[Annotator "NA"]
[PlyCount "86"]
[EventType "team-tourn"]
[EventCountry "TUR"]
[SourceTitle "playchess.com"]
[Source "ChessBase"]
[SourceQuality "1"]
[TimeControl "40/5400+30:1800+30"]

1. e4 {[%emt 0:00:30]} c5 {[%emt 0:01:00]} 2. Nc3 {[%emt 0:00:30]} Nc6 {[%emt 0:00:30]} 3. g3 {[%emt 0:00:30]} g6 {[%emt 0:00:30]} 4. Bg2 {[%emt 0:00:30]} Bg7 {[%emt 0:00:30]} 5. d3 {[%emt 0:00:30]} d6 {[%emt 0:00:30]} 6. f4 {[%emt 0:00:30]} e6 {[%emt 0:00:30]} 7. Nf3 {[%emt 0:01:30]} Nge7 {[%emt 0:00:00]} 8. O-O {[%emt 0:00:30]} O-O {[%emt 0:02:00]} 9. Be3 {[%emt 0:04:30]} Nd4 {[%emt 0:01:30]} 10. Qd2 {[%emt 0:01:30]} Nec6 {[%emt 0:09:30]} 11. Nd1 {[%emt 0:00:30]} (11. e5 $5) 11... Nxf3+ {[%emt 0:01:30]} 12. Bxf3 {[%emt 0:00:30]} Rb8 {[%emt 0:06:30]} 13. c3 {[%emt 0:01:30]} b6 {[%emt 0:03:30]} 14. d4 {[%emt 0:09:30]} Ne7 {[%emt 0:07:30]} 15. Nf2 {[%emt 0:07:30]} cxd4 $11 {[%emt 0:05:30]} 16. Bxd4 {[%emt 0:05:30]} d5 {[%emt 0:16:30]} (16... e5 $11 {remains equal.} 17. Be3 Bb7) 17. Bxg7 {[%emt 0:10:30]} Kxg7 {[%emt 0:00:30]} 18. Qd4+ {[%emt 0:05:30]} f6 {[%emt 0:00:30]} 19. exd5 {[%emt 0:00:30]} Nf5 {[%emt 0:09:30]} 20. Qd2 {[%emt 0:01:30]} exd5 {[%emt 0:01:30]} 21. Rad1 {[%emt 0:07:30]} Re8 {[%emt 0:03:30]} 22. Rfe1 {[%emt 0:00:30]} Bb7 {[%emt 0:00:30]} 23. Rxe8 {[%emt 0:11:30]} Qxe8 {[%emt 0:00:30]} 24. Bxd5 {[%emt 0:01:30]} Rd8 {[%emt 0:17:57]} 25. c4 {[%emt 0:00:30]} Qe3 {[%emt 0:05:46]} 26. Qxe3 {[%emt 0:06:30]} Nxe3 {[%emt 0:00:02]} 27. Re1 {[%emt 0:01:30]} Nxd5 {[%emt 0:00:39]} 28. cxd5 {[%emt 0:00:30]} Kf7 {[%emt 0:00:29]} 29. Rc1 {[%emt 0:03:00]} Rd7 {[%emt 0:01:36]} 30. d6 {[%emt 0:06:18]} Ke6 {[%emt 0:02:08]} 31. Re1+ {[%emt 0:01:19]} Kxd6 {[%emt 0:02:13]} 32. Ng4 {[%emt 0:00:44]} Rf7 {[%emt 0:00:37]} 33. Kf2 {[%emt 0:01:01]} h5 {[%emt 0:00:28]} 34. Ne3 {[%emt 0:00:24]} Rc7 {[%emt 0:00:39]} 35. h4 {[%emt 0:06:44]} Be4 {[%emt 0:00:48]} 36. Rd1+ {[%emt 0:01:08]} Ke7 {[%emt 0:00:24]} 37. Rd4 {[%emt 0:00:22]} Bb7 {[%emt 0:00:29]} 38. Rd1 {[%emt 0:02:14]} Be4 {[%emt 0:00:37]} 39. Rd4 {[%emt 0:02:00]} Bb7 {[%emt 0:00:05]} 40. f5 {[%emt 0:00:00]} gxf5 {[%emt 0:01:33]} 41. Nxf5+ {[%emt 0:01:16]} Ke6 {[%emt 0:02:30]} 42. Ne3 {[%emt 0:01:30]} Rc5 {[%emt 0:14:52]} 43. Rd2 {[%emt 0:04:30]} Be4 {[%emt 0:06:23]} 1/2-1/2

[Event "Turkey IS Bank Super League 2017"]
[Site "Darica-Kocaeli"]
[Date "2017.07.31"]
[Round "7"]
[White "Ozbay, Ece"]
[Black "Duran, Esma Doga"]
[Result "1-0"]
[ECO "B12"]
[WhiteElo "1970"]
[BlackElo "1939"]
[Annotator "NA"]
[PlyCount "109"]
[EventType "team-tourn"]
[EventCountry "TUR"]
[SourceTitle "playchess.com"]
[Source "ChessBase"]
[SourceQuality "1"]
[TimeControl "40/5400+30:1800+30"]

1. e4 {[%emt 0:01:30]} c6 {[%emt 0:01:00]} 2. d4 {[%emt 0:00:30]} d5 {[%emt 0:00:30]} 3. e5 {[%emt 0:00:30]} Bf5 {[%emt 0:00:30]} 4. Nf3 {[%emt 0:00:30]} e6 {[%emt 0:00:30]} 5. Be2 {[%emt 0:00:30]} Nd7 {[%emt 0:00:30]} 6. c3 {[%emt 0:03:30]} c5 {[%emt 0:04:30]} 7. O-O {[%emt 0:01:30]} Ne7 {[%emt 0:02:30]} 8. Nh4 {[%emt 0:15:30] LiveBook: 64 Games} Be4 $11 {[%emt 0:10:30]} 9. Nd2 {[%emt 0:13:30]} Bg6 {[%emt 0:13:30]} 10. Nxg6 {[%emt 0:05:30]} Nxg6 {[%emt 0:04:30]} 11. Nf3 {[%emt 0:05:30]} Be7 {[%emt 0:01:30]} 12. Be3 {[%emt 0:02:30]} O-O {[%emt 0:00:30]} 13. Bd3 {[%emt 0:05:30]} c4 {[%emt 0:06:30]} 14. Bc2 {[%emt 0:01:30]} b5 {[%emt 0:01:30]} 15. b4 {[%emt 0:12:30]} cxb3 {[%emt 0:04:30]} 16. axb3 {[%emt 0:00:30]} Qc7 {[%emt 0:00:30]} 17. Qd3 {[%emt 0:00:30]} a6 {[%emt 0:04:30]} 18. Rfc1 {[%emt 0:04:30]} Rfc8 {[%emt 0:01:30]} 19. Bb1 {[%emt 0:01:30]} Nb6 {[%emt 0:07:30]} 20. h4 {[%emt 0:02:30]} Qd8 {[%emt 0:04:30]} 21. Ng5 {[%emt 0:02:44]} Rc6 {[%emt 0:12:45]} 22. g3 {[%emt 0:03:49]} Bxg5 {[%emt 0:03:04]} 23. Bxg5 {[%emt 0:00:26]} Qc8 {[%emt 0:01:51]} 24. h5 {[%emt 0:07:07]} Nf8 {[%emt 0:00:04]} 25. Qf3 {[%emt 0:01:57]} Nbd7 {[%emt 0:05:10]} 26. h6 {[%emt 0:02:11]} g6 {[%emt 0:07:05]} 27. b4 {[%emt 0:03:14]} Qe8 {[%emt 0:00:58]} 28. Ra5 {[%emt 0:01:40]} Ra7 {[%emt 0:00:56]} 29. Kf1 {[%emt 0:00:42]} Rac7 {[%emt 0:00:25]} 30. Ke1 {[%emt 0:00:29]} Qc8 {[%emt 0:00:32]} 31. Kd2 {[%emt 0:00:27]} Rc4 {[%emt 0:00:36]} 32. Rc2 {[%emt 0:00:35]} R4c6 {[%emt 0:00:15]} 33. Ra3 {[%emt 0:00:32]} Ra7 {[%emt 0:00:44]} 34. Rca2 {[%emt 0:00:50]} Rac7 {[%emt 0:00:08]} 35. Be7 {[%emt 0:00:08]} Ra7 {[%emt 0:01:04]} 36. Bc5 {[%emt 0:00:32]} Rac7 {[%emt 0:00:31]} 37. Bd6 {[%emt 0:00:54]} Ra7 {[%emt 0:00:15]} 38. Bd3 {[%emt 0:00:04]} f5 {[%emt 0:00:56]} 39. Bxb5 {[%emt 0:00:33]} Rb6 {[%emt 0:00:29]} 40. Bd3 {[%emt 0:00:00]} Qa8 {[%emt 0:01:12]} 41. b5 {[%emt 0:04:36]} a5 {[%emt 0:02:30]} 42. Bc5 {[%emt 0:09:10]} Nxc5 {[%emt 0:00:30]} 43. dxc5 {[%emt 0:00:01]} Rb8 {[%emt 0:01:30]} 44. b6 {[%emt 0:00:07]} Rf7 {[%emt 0:01:30]} 45. Bb5 {[%emt 0:02:28]} Qb7 {[%emt 0:04:30]} 46. Rxa5 {[%emt 0:00:55]} Qe7 {[%emt 0:01:30]} 47. Qe3 {[%emt 0:03:41]} Nd7 {[%emt 0:07:14]} 48. Ra7 {[%emt 0:04:10]} Qd8 {[%emt 0:01:22]} 49. Bxd7 {[%emt 0:04:19]} Rxd7 {[%emt 0:00:13]} 50. Qd4 {[%emt 0:02:01]} Qg5+ {[%emt 0:00:42]} 51. Qf4 {[%emt 0:00:53]} Qd8 {[%emt 0:00:44]} 52. Rxd7 {[%emt 0:00:44]} Qxd7 {[%emt 0:00:30]} 53. Qa4 {[%emt 0:00:01]} Qc8 {[%emt 0:02:10]} 54. Qa7 {[%emt 0:02:31]} Qf8 {[%emt 0:01:20]} 55. Qg7+ {[%emt 0:00:10]} 1-0

[Event "Turkey IS Bank Super League 2017"]
[Site "Darica-Kocaeli"]
[Date "2017.07.31"]
[Round "7"]
[White "Ayan, Bengu Sena"]
[Black "Sade, Defne"]
[Result "1-0"]
[ECO "D11"]
[WhiteElo "1862"]
[BlackElo "1654"]
[Annotator "NA"]
[PlyCount "115"]
[EventType "team-tourn"]
[EventCountry "TUR"]
[SourceTitle "playchess.com"]
[Source "ChessBase"]
[SourceQuality "1"]
[TimeControl "40/5400+30:1800+30"]

1. d4 {[%emt 0:00:30]} d5 {[%emt 0:01:00]} 2. c4 {[%emt 0:00:30]} c6 {[%emt 0:00:30]} 3. Nf3 {[%emt 0:00:30]} Nf6 {[%emt 0:00:30]} 4. Qc2 {[%emt 0:00:30]} g6 {[%emt 0:00:30]} 5. Bf4 {[%emt 0:00:30]} Bf5 {[%emt 0:02:30]} 6. Qb3 {[%emt 0:02:30]} Qb6 {[%emt 0:00:30]} 7. c5 {[%emt 0:02:30]} Qxb3 {[%emt 0:00:30]} 8. axb3 {[%emt 0:00:00]} Na6 {[%emt 0:02:30]} 9. Nc3 {[%emt 0:07:00]} Bc2 {[%emt 0:03:30]} (9... Nh5 $11 10. Bd2 Nb4) 10. Nd2 {[%emt 0:03:30]} ({White should try} 10. e3 $16) 10... Nh5 $1 {[%emt 0:06:30]} 11. Bg5 {[%emt 0:05:30]} h6 {[%emt 0:01:30]} 12. Bh4 {[%emt 0:00:30]} g5 $15 {[%emt 0:00:30]} (12... e5 $5 13. e3 Nb4 14. dxe5 g5 $17) 13. Bg3 {[%emt 0:00:30]} Nxg3 {[%emt 0:00:30]} 14. hxg3 {[%emt 0:00:00]} Bg7 {[%emt 0:03:30]} 15. e3 {[%emt 0:02:00]} Nb4 {[%emt 0:01:30]} 16. Be2 {[%emt 0:08:30]} e5 {[%emt 0:08:30]} 17. dxe5 {[%emt 0:13:30]} Bxe5 {[%emt 0:00:30]} 18. O-O {[%emt 0:02:30]} Bd3 {[%emt 0:02:30]} 19. Bxd3 {[%emt 0:04:30]} Nxd3 {[%emt 0:00:30]} 20. Nf3 {[%emt 0:00:30]} Bxc3 {[%emt 0:07:30]} 21. bxc3 {[%emt 0:03:30]} Nxc5 {[%emt 0:00:30]} 22. Ra3 {[%emt 0:02:30]} Ne6 {[%emt 0:05:30]} 23. g4 {[%emt 0:01:30]} a6 {[%emt 0:01:30]} 24. Re1 {[%emt 0:03:30]} O-O-O {[%emt 0:10:30]} 25. Raa1 {[%emt 0:02:30]} f6 {[%emt 0:01:30]} 26. Nd4 {[%emt 0:06:30]} Nxd4 {[%emt 0:00:30]} 27. exd4 {[%emt 0:00:30]} Rhe8 {[%emt 0:00:30]} 28. f3 {[%emt 0:00:30]} Kd7 {[%emt 0:00:30]} 29. Kf2 {[%emt 0:00:30]} Rxe1 {[%emt 0:07:30]} 30. Rxe1 {[%emt 0:00:30]} Re8 {[%emt 0:00:30]} 31. Rh1 {[%emt 0:00:00]} Rh8 {[%emt 0:00:30]} 32. f4 {[%emt 0:04:00]} Kd6 {[%emt 0:00:30]} 33. f5 {[%emt 0:01:30]} Ke7 {[%emt 0:09:30]} 34. Ke3 {[%emt 0:03:30]} Kf7 {[%emt 0:03:00]} 35. Kd3 {[%emt 0:00:30]} b6 {[%emt 0:02:48]} 36. c4 {[%emt 0:02:24]} dxc4+ {[%emt 0:03:28]} 37. Kxc4 {[%emt 0:00:05]} Ke7 {[%emt 0:06:32]} 38. Re1+ {[%emt 0:01:05]} Kf7 {[%emt 0:04:41]} 39. Re6 {[%emt 0:03:50]} Rc8 {[%emt 0:00:31]} 40. d5 {[%emt 0:00:00]} cxd5+ {[%emt 0:04:30]} 41. Kxd5 {[%emt 0:02:36]} Rc5+ {[%emt 0:00:00]} 42. Kd6 {[%emt 0:05:30]} Rb5 {[%emt 0:01:00]} 43. Re7+ {[%emt 0:01:30]} Kf8 {[%emt 0:00:30]} 44. Rb7 {[%emt 0:00:30]} Rxb3 {[%emt 0:05:30]} 45. Ke6 {[%emt 0:00:00]} Rc3 {[%emt 0:01:30]} 46. Rxb6 {[%emt 0:01:00]} Kg7 {[%emt 0:00:30]} 47. Rb7+ {[%emt 0:01:30]} Kg8 {[%emt 0:00:30]} 48. Kxf6 {[%emt 0:02:30]} Rc6+ {[%emt 0:00:00]} 49. Ke5 {[%emt 0:04:30]} Kf8 {[%emt 0:03:00]} 50. f6 {[%emt 0:00:30]} a5 {[%emt 0:02:30]} 51. Ra7 {[%emt 0:03:30]} a4 {[%emt 0:04:50]} 52. Kf5 {[%emt 0:01:30]} a3 {[%emt 0:01:49]} 53. Kg6 {[%emt 0:00:30]} Ke8 {[%emt 0:03:44]} 54. Ra8+ {[%emt 0:01:30]} Kd7 {[%emt 0:00:38]} 55. Rxa3 {[%emt 0:00:00]} Ke6 {[%emt 0:01:41]} 56. Re3+ {[%emt 0:00:00]} Kd7 {[%emt 0:01:11]} 57. Kg7 {[%emt 0:00:30]} Rc8 {[%emt 0:00:00]} 58. f7 {[%emt 0:00:30]} 1-0